fUSD/lending_fUSD_20260420
["ID","MTS","AMOUNT","RATE_DAILY","PERIOD"]
[420863588,1776661840510,-504.38,0.000109,2]
[420863589,1776661840534,-426.58690159,0.000109,2]
[420863590,1776661840554,-564.11572434,0.000109,2]
[420863591,1776661840567,-606198.7273,0.000109,2]
[420863592,1776661840583,-1127.06611192,0.000109,2]
[420863616,1776661842762,-343.07272125,0.000109,2]
[420863617,1776661842923,-802.79178601,0.000109,2]
[420863618,1776661843135,-33196.07213842,0.000109,2]
[420863619,1776661843147,-26783.49026162,0.000109,2]
[420863634,1776661846290,-8574.70448286,0.000109,2]
[420863635,1776661846303,-13859.19709277,0.000109,2]
[420863636,1776661846314,-2734.51459853,0.00010912,2]
[420863637,1776661846324,-500.0,0.00010926,2]
[420863638,1776661846333,-500.0,0.00010959,2]
[420863639,1776661846343,-150.0,0.00010959,2]
[420863640,1776661846353,-255.0,0.00011065,2]
[420863641,1776661846362,-151.29,0.00011068,2]
[420863642,1776661846372,-172.22,0.00011068,2]
[420863643,1776661846382,-150.0,0.00011088,21]
[420863644,1776661846392,-150.0,0.00011088,21]
[420863645,1776661846402,-685.324,0.00011121,2]
[420863646,1776661846412,-416.923,0.00011121,2]
[420863647,1776661846422,-1377.42282659,0.00011124,2]
[420863648,1776661846432,-181.08010149,0.00011124,2]
[420863649,1776661846442,-1534.21,0.00011146,2]
[420863650,1776661846452,-500.0,0.000112,2]
[420863651,1776661846462,-196.20516508,0.00011267,2]
[420863652,1776661846472,-7270.70986201,0.00011277,2]
[420863653,1776661846482,-5000.0,0.00011277,2]
[420863654,1776661846493,-5000.0,0.00011277,2]
[420863655,1776661846503,-5000.0,0.00011277,2]
[420863656,1776661846513,-299.99,0.00011281,2]
[420863657,1776661846523,-1551.91,0.00011281,2]
[420863658,1776661846533,-150.99,0.00011281,2]
[420863659,1776661846543,-4382.97284111,0.00011281,2]
[420863660,1776661846577,-5617.01715889,0.00011281,2]
[420863661,1776661846587,-9999.99,0.00011281,2]
[420863662,1776661846597,-250.0,0.00011301,2]
[420863663,1776661846607,-150.0,0.00011301,2]
[420863664,1776661846617,-150.0,0.00011301,2]
[420863665,1776661846627,-115.83607242,0.00011301,2]
[420863666,1776661846639,-34.16392758,0.00011301,2]
[420863667,1776661846649,-1048.0,0.00011301,2]
[420863668,1776661846659,-213.62954206,0.00011301,2]
[420863669,1776661846672,-1051.37045794,0.00011301,2]
[420863670,1776661846681,-4363.24679776,0.00011321,2]
[420863671,1776661846702,-1666.75320224,0.00011321,2]
[420863672,1776661846712,-160.0,0.0001133,2]
[420863674,1776661846722,-3388.0,0.000114,2]
[420863675,1776661846732,-616.11117025,0.00011421,2]
[420863676,1776661846742,-501.15648876,0.00011421,2]
[420863677,1776661846752,-2351.0,0.00011422,2]
[420863678,1776661846762,-587.0,0.00011422,2]
[420863679,1776661846772,-722.0,0.00011467,5]
[420863680,1776661846782,-576.0,0.00011467,5]
[420863681,1776661846792,-500.0,0.00011474,2]
[420863682,1776661846802,-270.65226594,0.00011525,2]
[420863683,1776661846812,-2384.0,0.00011562,2]
[420863684,1776661846823,-300.0,0.00011599,2]
[420863686,1776661846833,-304.58099633,0.00011599,2]
[420863687,1776661846842,-72142.53930189,0.000116,2]
[420863689,1776661970020,12557.17,0.000165,30]
[420863690,1776662073294,150.0,8.788e-05,2]
[420863691,1776662140042,150.0,8.77e-05,2]
[420863692,1776662203909,150.0,8.724e-05,2]
[420863693,1776662271357,150.0,8.724e-05,2]
[420863694,1776662335830,150.0,8.709e-05,2]
[420863695,1776662410844,329.0,0.000165,120]
[420863698,1776662700509,4269.9881848,0.000165,30]
[420863705,1776663031823,-244.07,8.991e-05,2]
[420863706,1776663031833,-250.0,8.991e-05,2]
[420863707,1776663031842,-251.0,8.991e-05,2]
[420863708,1776663031852,-150.0,9.191e-05,2]
[420863709,1776663031861,-150.0,9.491e-05,2]
[420863710,1776663031871,-825.81949691,9.517e-05,2]
[420863711,1776663031883,-374.18050309,9.517e-05,2]
[420863712,1776663031893,-155.75935157,9.518e-05,2]
[420863713,1776663031902,-153.23295601,9.518e-05,2]
[420863714,1776663031912,-150.0,9.518e-05,2]
[420863715,1776663031922,-150.0,9.518e-05,2]
[420863716,1776663031931,-31.87417669,9.518e-05,2]
[420863717,1776663031943,-118.12582331,9.518e-05,2]
[420863718,1776663031952,-150.0,9.518e-05,2]
[420863719,1776663031962,-65.13495839,9.518e-05,2]
[420863720,1776663031973,-84.86504161,9.518e-05,2]
[420863721,1776663031982,-150.0,9.518e-05,2]
[420863722,1776663031992,-150.0,9.518e-05,2]
[420863723,1776663032001,-150.0,9.518e-05,2]
[420863724,1776663032011,-1621.07,9.538e-05,2]
[420863725,1776663032020,-2000.0,9.538e-05,2]
[420863726,1776663032030,-150.0,9.538e-05,2]
[420863727,1776663032039,-594.66,9.538e-05,2]
[420863728,1776663032054,-1047.41,9.618e-05,2]
[420863729,1776663032064,-168.36,9.686e-05,2]
[420863730,1776663032075,-150.0,9.87e-05,2]
[420863731,1776663032084,-150.0,9.87e-05,2]
[420863732,1776663032094,-250.0,9.89e-05,2]
[420863733,1776663032104,-250.0,9.89e-05,2]
[420863734,1776663032114,-2919.20170939,9.908e-05,2]
[420863735,1776663032142,-868.52832,9.908e-05,2]
[420863736,1776663032153,-343.29292514,9.908e-05,2]
[420863737,1776663032207,-2858.62704547,9.908e-05,2]
[420863738,1776663032216,-150.0,0.00010047,2]
[420863739,1776663032226,-150.0,0.00010047,2]
[420863740,1776663032235,-150.0,0.00010047,2]
[420863742,1776663032247,-150.0,0.00010047,2]
[420863744,1776663032256,-150.0,0.00010223,2]
[420863746,1776663032265,-150.0,0.00010223,2]
[420863747,1776663032275,-5864.3483,0.00010278,2]
[420863748,1776663032285,-9985.07865476,0.000103,2]
[420863749,1776663032304,-8851.01212348,0.000103,2]
[420863750,1776663032316,-1566.16365934,0.000103,2]
[420863751,1776663038540,-934.02181292,9.518e-05,2]
[420863752,1776663038550,-296.7078692,0.000103,2]
[420863753,1776663038646,-465.01145133,0.000103,2]
[420863754,1776663038658,-317.2136605,0.000103,2]
[420863755,1776663038813,-294.26987052,0.000103,2]
[420863756,1776663038869,-3980.21091982,0.000103,2]
[420863757,1776663038881,-1884.13741114,0.000103,2]
[420863926,1776663042383,-277.1987,0.000103,2]
[420863927,1776663042394,-356.90157413,0.000103,2]
[420863928,1776663042452,-665.63430059,0.000103,2]
[420863929,1776663042463,-2878.09324054,0.000103,2]
[420863930,1776663042474,-715.19364504,0.000103,2]
[420863931,1776663042486,-1386.70499995,0.000103,2]
[420863933,1776663046368,-934.02181292,9.933e-05,2]
[420863934,1776663046377,-1206.38073014,0.000103,2]
[420863935,1776663046389,-19070.39026034,0.000103,2]
[420863936,1776663046399,-208.0,0.00010348,2]
[420863937,1776663046408,-1680.0,0.00010468,2]
[420863938,1776663046418,-3945.7839,0.000105,2]
[420863939,1776663046427,-2500.0,0.000105,2]
[420863940,1776663046436,-5000.0,0.000105,2]
[420863941,1776663046445,-165.65086304,0.00010533,2]
[420863942,1776663046455,-153.30029452,0.00010575,2]
[420863943,1776663046464,-169.65065717,0.00010575,2]
[420863944,1776663046474,-186.67368104,0.00010575,2]
[420863945,1776663046483,-157.71504807,0.00010575,2]
[420863946,1776663046492,-153.21999169,0.00010575,2]
[420863947,1776663046502,-150.63017116,0.00010575,2]
[420863948,1776663046512,-239.8733783,0.00010575,2]
[420863949,1776663046522,-151.97131639,0.00010594,2]
[420863950,1776663046531,-1000.0,0.00010599,2]
[420863951,1776663046542,-500.0,0.00010599,2]
[420863952,1776663046552,-171.85113844,0.00010599,2]
[420863953,1776663046562,-191.53895183,0.00010599,2]
[420863954,1776663046571,-500.0,0.00010599,2]
[420863955,1776663046580,-500.0,0.00010599,2]
[420863956,1776663046591,-500.0,0.00010599,2]
[420863957,1776663046601,-500.0,0.00010599,2]
[420863958,1776663046610,-325.46290168,0.00010599,2]
[420863959,1776663046620,-366.02743831,0.00010599,2]
[420863960,1776663046630,-500.0,0.00010599,2]
[420863961,1776663046639,-159.85776851,0.00010599,2]
[420863962,1776663046649,-596.00623829,0.00010599,2]
[420863963,1776663046658,-1305.60379682,0.00010599,2]
[420863964,1776663046670,-1193.50920318,0.00010599,2]
[420863965,1776663046679,-176.253,0.00010599,2]
[420863966,1776663046688,-250.0,0.00010599,2]
[420863967,1776663046698,-75360.15823976,0.000106,2]
[420863969,1776663046730,-5038.18168835,0.000106,2]
[420863971,1776663046741,-494.5,0.000106,2]
[420863973,1776663046756,-20592.60526196,0.000106,2]
[420863974,1776663046767,-931.86771549,0.000106,2]
[420863975,1776663046782,-841.08059646,0.000106,2]
[420863976,1776663046793,-117996.03798309,0.000106,2]
[420863977,1776663046816,-2934.4,0.000106,2]
[420863978,1776663046847,-41498.27906854,0.000106,2]
[420863979,1776663046858,-1654.5406,0.000106,2]
[420863980,1776663071572,-300.0,8.991e-05,2]
[420863981,1776663071595,-393.41419237,8.991e-05,2]
[420863987,1776663189227,9850.01,8.9e-05,2]
[420863988,1776663189250,10000.01,8.9e-05,2]
[420863989,1776663189272,10000.01,8.9e-05,2]
[420863990,1776663189295,10000.01,8.9e-05,2]
[420863991,1776663189318,10000.01,8.9e-05,2]
[420863992,1776663189340,10000.01,8.9e-05,2]
[420863993,1776663189362,10000.01,8.9e-05,2]
[420863994,1776663189383,10000.01,8.9e-05,2]
[420863995,1776663189404,10000.01,8.9e-05,2]
[420863996,1776663189424,10000.01,8.9e-05,2]
[420863997,1776663189450,120149.93,8.9e-05,2]
[420864001,1776663311553,155.0,8.9e-05,3]
[420864008,1776664231921,-246.0,8.945e-05,2]
[420864009,1776664231931,-250.0,8.945e-05,2]
[420864010,1776664231941,-813.68764366,8.973e-05,2]
[420864011,1776664231952,-2318.44969168,8.973e-05,2]
[420864012,1776664231961,-250.0,8.973e-05,2]
[420864013,1776664231971,-1200.0,8.99e-05,2]
[420864014,1776664231981,-300.0,9.061e-05,2]
[420864015,1776664231990,-607.47446199,9.062e-05,2]
[420864016,1776664232002,-326.03172292,9.062e-05,2]
[420864017,1776664232013,-257.8752,9.062e-05,2]
[420864018,1776664232035,-1295.9148631,9.062e-05,2]
[420864019,1776664232046,-267.37735194,9.062e-05,2]
[420864020,1776664232061,-254.14013485,9.062e-05,2]
[420864021,1776664232072,-369.98931999,9.062e-05,2]
[420864022,1776664232086,-264.00221638,9.062e-05,2]
[420864023,1776664232097,-1965.28730358,9.062e-05,2]
[420864024,1776664232109,-2424.07895351,9.062e-05,2]
[420864025,1776664232119,-2993.88054873,9.062e-05,2]
[420864026,1776664232131,-540.40776292,9.062e-05,2]
[420864027,1776664232142,-323.3292545,9.062e-05,2]
[420864028,1776664232153,-1632.70955247,9.062e-05,2]
[420864029,1776664232165,-772.90932142,9.062e-05,2]
[420864030,1776664232197,-1635.36487997,9.062e-05,2]
[420864031,1776664232251,-2800.96661148,9.062e-05,2]
[420864034,1776664238245,-981.27320347,9.062e-05,2]
[420864035,1776664238321,-3980.21091982,9.062e-05,2]
[420864036,1776664238332,-1884.13741114,9.062e-05,2]
[420864037,1776664238458,-1222.12293849,9.062e-05,2]
[420864066,1776664243491,-971.35603204,9.062e-05,2]
[420864067,1776664243503,-658.88696035,9.062e-05,2]
[420864068,1776664243542,-443.4506406,9.062e-05,2]
[420864069,1776664243553,-4919.50164026,9.062e-05,2]
[420864070,1776664243572,-393.16079408,9.062e-05,2]
[420864071,1776664243581,-254.34,9.065e-05,2]
[420864072,1776664243591,-500.0,9.144e-05,2]
[420864073,1776664243599,-150.0,9.173e-05,2]
[420864074,1776664243608,-2301.83,9.301e-05,2]
[420864075,1776664243618,-200.0,9.359e-05,2]
[420864076,1776664243627,-200.0,9.4e-05,2]
[420864077,1776664243636,-150.0,9.537e-05,2]
[420864078,1776664243651,-249.61,9.538e-05,2]
[420864079,1776664243661,-15880.56526196,9.538e-05,2]
[420864080,1776664246221,-4287.47473804,9.538e-05,2]
[420864081,1776664246231,-4272.16,9.538e-05,2]
[420864082,1776664246241,-211.3,9.685e-05,2]
[420864083,1776664246251,-1108.0,9.78e-05,2]
[420864084,1776664246260,-250.0,9.84e-05,2]
[420864085,1776664246270,-300.0,9.84e-05,2]
[420864086,1776664246280,-150.0,9.87e-05,2]
[420864087,1776664246290,-1680.0,9.889e-05,2]
[420864088,1776664246299,-420.0,9.967e-05,2]
[420864089,1776664246309,-1049.21297137,0.0001,2]
[420864090,1776664246318,-163.61,0.00010022,2]
[420864091,1776664246327,-500.0,0.00010073,2]
[420864092,1776664246337,-500.0,0.00010073,2]
[420864093,1776664246347,-500.0,0.00010073,2]
[420864094,1776664246356,-286.65485468,0.00010099,2]
[420864095,1776664246365,-78009.11558989,0.00010099,2]
[420864096,1776664246378,-2315.7588,0.00010099,2]
[420864098,1776664246580,-276.94396154,0.00010099,2]
[420864099,1776664246593,-36310.5474248,0.00010099,2]
[420864100,1776664260951,226.53,0.000162,120]
[420864103,1776664441293,1137.0,8.9e-05,2]
[420864104,1776664594987,-2619.875406,9.016e-05,2]
[420864105,1776664595010,-243.92002141,9.016e-05,2]
[420864106,1776664595033,-247.0,9.016e-05,2]
[420864107,1776664595056,-2060.12868882,9.062e-05,2]
[420864108,1776664595079,-1600.0,9.189e-05,2]
[420864109,1776664595103,-1200.0,9.472e-05,2]
[420864110,1776664595125,-10000.0,9.473e-05,2]
[420864111,1776664595148,-1500.0,9.538e-05,2]
[420864112,1776664595171,-4902.79,9.538e-05,2]
[420864113,1776664595193,-193.0,9.557e-05,2]
[420864114,1776664595215,-260.67,9.559e-05,2]
[420864115,1776664633985,-5000.0,9.016e-05,2]
[420864116,1776664634013,-311.34060432,9.016e-05,2]
[420864117,1776664634039,-1731.54926271,9.06e-05,2]
[420864136,1776665434808,-150.0,9.074e-05,2]
[420864137,1776665434819,-247.0,9.074e-05,2]
[420864138,1776665434831,-1063.18,9.368e-05,2]
[420864139,1776665434841,-150.0,9.537e-05,2]
[420864140,1776665434852,-1200.0,9.537e-05,2]
[420864141,1776665434862,-2427.48,9.538e-05,2]
[420864142,1776665434872,-2000.0,9.538e-05,2]
[420864143,1776665434883,-2800.57,9.538e-05,2]
[420864144,1776665434894,-8324.85,9.538e-05,2]
[420864145,1776665434904,-207.56040288,9.538e-05,2]
[420864146,1776665434915,-150.0,9.578e-05,2]
[420864147,1776665434925,-500.0,9.604e-05,2]
[420864148,1776665434936,-196.68273825,9.604e-05,2]
[420864149,1776665434947,-500.0,9.604e-05,2]
[420864150,1776665434957,-500.0,9.604e-05,2]
[420864151,1776665434967,-500.0,9.604e-05,2]
[420864152,1776665434977,-306.21920681,9.604e-05,2]
[420864153,1776665434988,-500.0,9.604e-05,2]
[420864154,1776665434999,-313160.2343,9.605e-05,2]
[420864155,1776665435009,-375.5876,9.605e-05,2]
[420864156,1776665435020,-207.56040286,9.63e-05,2]
[420864157,1776665435029,-500.0,9.683e-05,2]
[420864158,1776665435040,-503.63062943,9.683e-05,2]
[420864159,1776665435051,-250.0,9.704e-05,2]
[420864160,1776665435061,-452394.57001535,9.705e-05,2]
[420864161,1776665435073,-11956.46386795,9.705e-05,2]
[420864165,1776665439157,-409.68030236,9.604e-05,2]
[420864166,1776665439192,-90.31969764,9.604e-05,2]
[420864167,1776665439201,-500.0,9.604e-05,2]
[420864168,1776665439211,-500.0,9.604e-05,2]
[420864169,1776665439220,-500.0,9.604e-05,2]
[420864170,1776665439230,-500.0,9.604e-05,2]
[420864171,1776665439240,-500.0,9.604e-05,2]
[420864172,1776665439249,-500.0,9.604e-05,2]
[420864173,1776665439260,-500.0,9.604e-05,2]
[420864174,1776665439269,-389.89122218,9.604e-05,2]
[420864185,1776665440459,-110.10877782,9.604e-05,2]
[420864186,1776665440469,-277.89892934,9.604e-05,2]
[420864187,1776665440482,-222.10107066,9.604e-05,2]
[420864188,1776665440492,-500.0,9.604e-05,2]
[420864189,1776665440501,-245.39829379,9.604e-05,2]
[420864190,1776665440521,-254.60170621,9.604e-05,2]
[420864191,1776665440530,-47.11529379,9.604e-05,2]
[420864192,1776665440553,-452.88470621,9.604e-05,2]
[420864193,1776665440562,-282.14302526,9.604e-05,2]
[420864194,1776665440572,-500.0,9.604e-05,2]
[420864195,1776665440581,-500.0,9.604e-05,2]
[420864196,1776665440590,-500.0,9.604e-05,2]
[420864197,1776665440600,-500.0,9.604e-05,2]
[420864198,1776665440610,-363290.93804131,9.705e-05,2]
[420864210,1776665446466,-2314.17,9.705e-05,2]
[420864211,1776665446679,-5740.90391765,9.705e-05,2]
[420864212,1776665446691,-28386.33943588,9.705e-05,2]
[420864254,1776665456273,-180.69455631,9.604e-05,2]
[420864255,1776665456296,-150.39884861,9.705e-05,21]
[420864256,1776665456321,-270.83531944,9.705e-05,2]
[420864259,1776666130277,200.0,8.861e-05,2]
[420864260,1776666323347,284.23043052,8.532e-05,2]
[420864261,1776666389192,150.8171,0.000165,30]
[420864263,1776666428429,150.0,0.00011233,120]
[420864264,1776666509933,8378.77956948,8.702e-05,2]
[420864265,1776666509961,5601.44043052,8.702e-05,2]
[420864266,1776666632437,-500.0,8.974e-05,2]
[420864267,1776666632447,-712.26451268,8.974e-05,2]
[420864268,1776666632456,-248.0,8.974e-05,2]
[420864269,1776666632466,-500.0,9.37e-05,2]
[420864270,1776666632476,-702.35724449,9.391e-05,2]
[420864271,1776666632486,-224787.6869,9.395e-05,2]
[420864272,1776666632495,-6155.495,9.405e-05,2]
[420864273,1776666632504,-4155.9118,9.405e-05,2]
[420864274,1776666632513,-300.0,9.482e-05,2]
[420864275,1776666632523,-300.0,9.482e-05,2]
[420864276,1776666632533,-300.0,9.482e-05,2]
[420864277,1776666632543,-1200.0,9.482e-05,2]
[420864278,1776666632552,-500.0,9.483e-05,2]
[420864279,1776666632562,-500.0,9.483e-05,2]
[420864280,1776666632571,-500.0,9.483e-05,2]
[420864281,1776666632580,-500.0,9.483e-05,2]
[420864282,1776666632590,-500.0,9.483e-05,2]
[420864283,1776666632599,-500.0,9.483e-05,2]
[420864284,1776666632609,-150.0,9.494e-05,2]
[420864285,1776666632618,-50970.20999369,9.495e-05,2]
[420864286,1776666632628,-250.0,9.504e-05,2]
[420864287,1776666632637,-683.66,9.504e-05,2]
[420864288,1776666632646,-39417.49970103,9.505e-05,2]
[420864290,1776666632659,-75699.86823316,9.505e-05,2]
[420864292,1776666632671,-20598.20718852,9.505e-05,2]
[420864294,1776666632682,-41910.51749651,9.505e-05,2]
[420864296,1776666632694,-1254.41808677,9.505e-05,2]
[420864298,1776666632706,-361.04264806,9.505e-05,2]
[420864300,1776666632717,-3766.60401429,9.505e-05,2]
[420864303,1776666632728,-2908.61379981,9.505e-05,2]
[420864305,1776666632740,-280.63250004,9.505e-05,2]
[420864307,1776666632755,-343.06352838,9.505e-05,2]
[420864310,1776666632766,-1195.0,9.505e-05,2]
[420864312,1776666632778,-363.22867442,9.505e-05,2]
[420864318,1776666638520,-500.0,9.504e-05,2]
[420864319,1776666638529,-500.0,9.504e-05,2]
[420864320,1776666638539,-500.0,9.504e-05,2]
[420864321,1776666638550,-500.0,9.504e-05,2]
[420864322,1776666638559,-500.0,9.504e-05,2]
[420864323,1776666638569,-178.48721443,9.504e-05,2]
[420864324,1776666638631,-321.51278557,9.504e-05,2]
[420864325,1776666638640,-37.89757873,9.504e-05,2]
[420864326,1776666638688,-279.13339968,9.504e-05,2]
[420864327,1776666638801,-182.96902159,9.504e-05,2]
[420864328,1776666638811,-249.36631552,9.504e-05,2]
[420864329,1776666638911,-250.63368448,9.504e-05,2]
[420864330,1776666638920,-500.0,9.504e-05,2]
[420864331,1776666638930,-500.0,9.504e-05,2]
[420864332,1776666638940,-500.0,9.504e-05,2]
[420864333,1776666638949,-500.0,9.504e-05,2]
[420864334,1776666638959,-500.0,9.504e-05,2]
[420864335,1776666638969,-500.0,9.504e-05,2]
[420864336,1776666638978,-500.0,9.504e-05,2]
[420864337,1776666638987,-229.57723534,9.504e-05,2]
[420864352,1776666640953,-270.42276466,9.504e-05,2]
[420864353,1776666640963,-203.51059367,9.504e-05,2]
[420864384,1776666648398,-296.48940633,9.504e-05,2]
[420864385,1776666648407,-500.0,9.504e-05,2]
[420864386,1776666648417,-500.0,9.504e-05,2]
[420864387,1776666648426,-500.0,9.504e-05,2]
[420864388,1776666648435,-257.11377078,9.504e-05,2]
[420864389,1776666648444,-500.0,9.504e-05,2]
[420864390,1776666648454,-500.0,9.504e-05,2]
[420864391,1776666648463,-500.0,9.504e-05,2]
[420864392,1776666648472,-500.0,9.504e-05,2]
[420864393,1776666648482,-500.0,9.504e-05,2]
[420864394,1776666648491,-367.32555485,9.504e-05,2]
[420864395,1776666648580,-132.67444515,9.504e-05,2]
[420864396,1776666648590,-500.0,9.504e-05,2]
[420864397,1776666648599,-500.0,9.504e-05,2]
[420864398,1776666648608,-345.11455485,9.504e-05,2]
[420864399,1776666648626,-154.88544515,9.504e-05,2]
[420864400,1776666648635,-500.0,9.504e-05,2]
[420864401,1776666649169,-500.0,9.504e-05,2]
[420864402,1776666649178,-240.88270735,9.504e-05,2]
[420864403,1776666649188,-8238.79824967,9.505e-05,2]
[420864406,1776666805086,1094.80466262,0.000165,30]
[420864407,1776667154665,1600.0,8.561e-05,2]
[420864409,1776667453152,2000.0,8.459e-05,2]
[420864410,1776667540754,500.0,8.372e-05,2]
[420864411,1776667549774,163.49969059,8.359e-05,2]
[420864412,1776667563028,1500.0,8.372e-05,2]
[420864413,1776667695001,151.0,8.648e-05,2]
[420864414,1776667721672,653.26194024,8.668e-05,2]
[420864415,1776667747334,1400.28,8.528e-05,2]
[420864416,1776667788688,160.43,8.674e-05,2]
[420864419,1776667831578,-249.0,8.972e-05,2]
[420864420,1776667831588,-250.0,8.973e-05,2]
[420864421,1776667831598,-380.52740526,8.973e-05,2]
[420864422,1776667831607,-5000.0,8.973e-05,2]
[420864423,1776667831617,-3974.393,9.109e-05,2]
[420864424,1776667831626,-178.339,9.109e-05,2]
[420864425,1776667831636,-380.52740526,9.134e-05,2]
[420864426,1776667831645,-2114.6849,9.195e-05,2]
[420864427,1776667831655,-33078.91,9.195e-05,2]
[420864428,1776667831664,-2500.0,9.195e-05,2]
[420864429,1776667831674,-311.28304963,9.206e-05,2]
[420864430,1776667831683,-311.28304963,9.206e-05,2]
[420864431,1776667831692,-390.0,9.261e-05,2]
[420864432,1776667831701,-500.0,9.273e-05,2]
[420864433,1776667831711,-500.0,9.273e-05,2]
[420864434,1776667831720,-500.0,9.273e-05,2]
[420864435,1776667831729,-500.75597371,9.273e-05,2]
[420864436,1776667831739,-500.0,9.273e-05,2]
[420864437,1776667831748,-406.0,9.273e-05,2]
[420864438,1776667831757,-281.79104492,9.293e-05,2]
[420864439,1776667831767,-155.0,9.293e-05,2]
[420864440,1776667831776,-46.71561353,9.293e-05,2]
[420864441,1776667831788,-103.28438647,9.293e-05,2]
[420864442,1776667831797,-500.0,9.294e-05,2]
[420864443,1776667831807,-500.0,9.294e-05,2]
[420864444,1776667831816,-500.0,9.294e-05,2]
[420864445,1776667831826,-500.0,9.294e-05,2]
[420864446,1776667831835,-168.61789515,9.294e-05,2]
[420864447,1776667831845,-500.0,9.294e-05,2]
[420864450,1776667832393,-216.16538849,9.294e-05,2]
[420864451,1776667832431,-500.0,9.294e-05,2]
[420864452,1776667832440,-500.0,9.294e-05,2]
[420864453,1776667832450,-500.0,9.294e-05,2]
[420864454,1776667832460,-500.0,9.294e-05,2]
[420864455,1776667832470,-500.0,9.294e-05,2]
[420864456,1776667832479,-291.30595036,9.294e-05,2]
[420864457,1776667832489,-438.71991662,9.294e-05,2]
[420864458,1776667832498,-221.35957663,9.294e-05,2]
[420864459,1776667832508,-542.9102334,9.294e-05,2]
[420864460,1776667832517,-487.83972484,9.294e-05,2]
[420864461,1776667832530,-12.16027516,9.294e-05,2]
[420864462,1776667832539,-500.0,9.294e-05,2]
[420864463,1776667832549,-500.0,9.294e-05,2]
[420864464,1776667832558,-500.0,9.294e-05,2]
[420864465,1776667832568,-500.0,9.294e-05,2]
[420864466,1776667832577,-500.0,9.294e-05,2]
[420864467,1776667832587,-142.02916498,9.294e-05,2]
[420864468,1776667832598,-357.97083502,9.294e-05,2]
[420864469,1776667832608,-204.67546422,9.294e-05,2]
[420864470,1776667832617,-500.0,9.294e-05,2]
[420864471,1776667832627,-500.0,9.294e-05,2]
[420864472,1776667832636,-500.0,9.294e-05,2]
[420864473,1776667832646,-500.0,9.294e-05,2]
[420864474,1776667832656,-500.0,9.294e-05,2]
[420864475,1776667832665,-500.0,9.294e-05,2]
[420864476,1776667832675,-500.0,9.294e-05,2]
[420864477,1776667832684,-500.0,9.294e-05,2]
[420864478,1776667832693,-500.0,9.294e-05,2]
[420864479,1776667832703,-500.0,9.294e-05,2]
[420864480,1776667832713,-500.0,9.294e-05,2]
[420864481,1776667832723,-500.0,9.294e-05,2]
[420864482,1776667832732,-500.0,9.294e-05,2]
[420864483,1776667832742,-500.0,9.294e-05,2]
[420864484,1776667832751,-500.0,9.294e-05,2]
[420864485,1776667832760,-500.0,9.294e-05,2]
[420864486,1776667832770,-500.0,9.294e-05,2]
[420864487,1776667832779,-500.0,9.294e-05,2]
[420864488,1776667832789,-500.0,9.294e-05,2]
[420864489,1776667832799,-500.0,9.294e-05,2]
[420864490,1776667832808,-500.0,9.294e-05,2]
[420864491,1776667832817,-500.0,9.294e-05,2]
[420864492,1776667832827,-500.0,9.294e-05,2]
[420864493,1776667832836,-500.0,9.294e-05,2]
[420864494,1776667832846,-765.99,9.294e-05,2]
[420864495,1776667832855,-9999.99,9.294e-05,2]
[420864496,1776667832864,-9999.99,9.294e-05,2]
[420864497,1776667832874,-299.99,9.294e-05,2]
[420864498,1776667832884,-500.0,9.294e-05,2]
[420864499,1776667832893,-500.0,9.294e-05,2]
[420864500,1776667832903,-500.0,9.294e-05,2]
[420864501,1776667832912,-500.0,9.294e-05,2]
[420864502,1776667832922,-500.0,9.294e-05,2]
[420864503,1776667832931,-500.0,9.294e-05,2]
[420864504,1776667832941,-500.0,9.294e-05,2]
[420864505,1776667832951,-500.0,9.294e-05,2]
[420864506,1776667832960,-500.0,9.294e-05,2]
[420864507,1776667832970,-500.0,9.294e-05,2]
[420864508,1776667832979,-500.0,9.294e-05,2]
[420864509,1776667832988,-500.0,9.294e-05,2]
[420864510,1776667832998,-462.78821572,9.294e-05,2]
[420864511,1776667833010,-37.21178428,9.294e-05,2]
[420864512,1776667833020,-500.0,9.294e-05,2]